bitfinex-derivatives/quotes_SOLF0:USTF0_20260129
["timestamp","ask_amount","ask_price","bid_price","bid_amount"]
[1769708207930,7.574,119.0,118.95,2.99045673]
[1769708208130,10.97455548,119.01,118.95,2.99045673]
[1769708208528,6.39161221,119.03,118.96,6.4319267]
[1769708208836,3.40115548,119.05,118.99,2.99045673]
[1769708209236,10.97205548,119.05,118.99,2.99045673]
[1769708209431,13.96251221,119.05,118.99,2.99045673]
[1769708210027,6.39161221,119.03,118.97,3.44146997]
[1769708210737,3.40115548,119.0,118.94,2.99045673]
[1769708210940,2.99045673,118.99,118.93,3.44146997]
[1769708211838,6.39161221,119.0,118.93,14.0102267]
[1769708212526,2.99045673,118.99,118.93,11.01976997]
[1769708213834,10.97515548,119.0,118.94,3.44146997]
[1769708213835,6.39161221,119.0,118.94,3.44146997]
[1769708214032,6.39161221,119.0,118.94,11.01916997]
[1769708214236,6.39161221,119.02,118.96,3.44146997]
[1769708214431,3.40115548,119.02,118.96,3.44146997]
[1769708215143,3.40115548,119.02,118.96,6.4319267]
[1769708215442,10.56255673,119.03,118.97,3.39259632]
[1769708217140,13.96235444,119.02,118.95,3.39259632]
[1769708217435,2.99045673,118.99,118.93,3.39259632]
[1769708218443,2.99045673,118.99,118.93,10.97039632]
[1769708219143,2.99045673,118.99,118.93,13.96085305]
[1769708219343,13.96365444,119.0,118.93,13.96085305]
[1769708219846,2.99045673,118.99,118.93,10.97039632]
[1769708220046,10.97319771,119.0,118.94,6.38305305]
[1769708220247,3.39919771,119.0,118.94,13.96055305]
[1769708220448,6.38965444,119.02,118.96,3.39259632]
[1769708220645,2.99045673,119.03,118.96,6.38305305]
[1769708220848,13.96165444,119.04,118.97,13.95885305]
[1769708221648,10.56255673,119.03,118.97,3.39259632]
[1769708222243,6.38965444,119.04,118.97,6.38305305]
[1769708222952,2.99045673,119.03,118.97,6.38305305]
[1769708223153,13.96115444,119.04,118.98,7.5752]
[1769708223352,6.38965444,119.04,118.98,10.96779632]
[1769708223653,171.22,119.06,118.99,6.38305305]
[1769708223654,177.60965444,119.06,118.99,6.38305305]
[1769708224150,177.60965444,119.06,119.0,7.5738]
[1769708224351,3.39919771,119.06,119.0,7.5738]
[1769708224545,6.38965444,119.06,119.0,7.5738]
[1769708225352,3.39919771,119.06,119.0,13.95685305]
[1769708225749,2.99045673,119.07,119.01,7.5732]
[1769708225952,3.39919771,119.08,119.02,6.38305305]
[1769708226348,3.39919771,119.08,119.02,10.96529632]
[1769708226549,13.95855444,119.08,119.02,10.96529632]
[1769708226958,2.99045673,119.07,119.02,3.39259632]
[1769708227149,10.55995673,119.07,119.02,3.39259632]
[1769708227346,2.99045673,119.07,119.02,3.39259632]
[1769708227855,13.95855444,119.08,119.02,3.39259632]
[1769708228058,13.95855444,119.08,119.02,10.96519632]
[1769708228254,6.38965444,119.08,119.02,10.96519632]
[1769708228853,13.95855444,119.08,119.02,10.96519632]
[1769708229960,2.99045673,119.07,119.02,10.96519632]
[1769708230157,2.99045673,119.07,119.0,2.99045673]
[1769708230158,2.99045673,119.06,119.0,10.96609632]
[1769708230464,2.99045673,119.05,119.0,10.96609632]
[1769708231461,2.99045673,119.04,118.98,10.96739632]
[1769708231960,10.56135673,119.05,118.99,10.96709632]
[1769708232758,2.99045673,119.06,119.01,3.39259632]
[1769708232955,3.39919771,119.08,119.02,6.38305305]
[1769708233253,2.99045673,119.09,119.03,3.39259632]
[1769708233462,2.99045673,119.07,119.03,3.39259632]
[1769708233657,2.99045673,119.08,119.0,2.99045673]
[1769708233862,2.99045673,119.07,119.01,3.39259632]
[1769708234860,2.99045673,119.07,119.01,10.96589632]
[1769708235867,2.99045673,119.07,119.02,10.96499632]
[1769708236463,2.99045673,119.05,119.0,10.96609632]
[1769708236656,2.99045673,119.04,119.0,10.96609632]
[1769708239364,2.99045673,119.02,118.98,3.39259632]
[1769708239570,2.98749938,119.02,118.98,3.39259632]
[1769708240069,2.98749938,119.03,118.98,3.39259632]
[1769708240268,2.98749938,119.03,118.99,7.5745]
[1769708242173,2.98749938,119.03,118.98,3.39259632]
[1769708242481,2.98749938,119.01,118.96,3.39259632]
[1769708242867,2.98749938,119.01,118.97,7.5758]
[1769708244368,288.4602,119.06,118.96,7.5765]
[1769708244369,2.98749938,118.99,118.96,7.5765]
[1769708245579,2.98749938,118.98,118.94,3.39259632]
[1769708245880,2.98749938,118.99,118.94,3.39259632]
[1769708246380,2.98749938,118.99,118.96,7.5765]
[1769708246576,10.89490605,119.04,118.97,3.36554526]
[1769708246774,2.98749938,119.02,118.97,3.36554526]
[1769708246975,2.98749938,119.01,118.97,3.36554526]
[1769708247471,2.98749938,119.0,118.97,3.36554526]
[1769708247681,3.32300605,119.03,118.97,3.36554526]
[1769708247976,2.98749938,119.01,118.97,3.36554526]
[1769708248381,2.98749938,119.02,118.97,3.36554526]
[1769708249378,2.98749938,119.02,118.99,7.5745]
[1769708250183,2.98749938,119.03,118.99,7.5745]
[1769708253387,3.32329032,119.04,118.97,3.36554526]
[1769708253588,2.98749938,119.02,118.97,3.36554526]
[1769708253789,2.98749938,119.03,118.97,3.36554526]
[1769708254779,2.98749938,119.02,118.97,3.36554526]
[1769708255292,2.98749938,119.02,118.99,7.5743]
[1769708255788,2.98749938,119.03,118.99,7.5743]
[1769708256784,2.98749938,119.03,118.97,10.94084526]
[1769708257694,2.98749938,119.03,118.98,7.5751]
[1769708258692,2.98749938,119.03,118.98,11.08149483]
[1769708260090,6.3107897,119.04,118.98,11.08149483]
[1769708262695,10.89349032,119.06,119.0,6.49389421]
[1769708264292,10.89349032,119.06,119.0,14.06729421]
[1769708264486,3.32329032,119.04,118.97,3.50639483]
[1769708264687,6.3107897,119.04,118.97,6.49389421]
[1769708265393,6.3107897,119.03,118.97,11.08159483]
[1769708266389,6.3107897,119.02,118.96,7.5764]
[1769708266597,6.3107897,119.01,118.95,3.50639483]
[1769708266900,2.98749938,119.0,118.95,3.50639483]
[1769708267306,13.8847897,119.0,118.94,7.5778]
[1769708267495,2.98749938,118.98,118.93,3.50639483]
[1769708267696,6.3107897,118.99,118.93,3.50639483]
[1769708268001,2.98749938,118.98,118.93,3.50639483]
[1769708269598,10.89819032,118.99,118.93,3.50639483]
[1769708271705,10.89819032,118.99,118.93,11.08459483]
[1769708275701,10.89819032,118.99,118.93,3.50639483]
[1769708276006,10.93174793,118.98,118.92,7.579]
[1769708276502,10.93174793,118.98,118.92,10.97802913]
[1769708278007,3.35654793,118.97,118.92,3.39902913]
[1769708278206,3.35654793,118.97,118.9,3.39902913]
[1769708279308,7.5766,118.96,118.9,10.97932913]
[1769708280004,10.93314793,118.96,118.9,10.97932913]
[1769708281518,3.35654793,118.95,118.88,3.39902913]
[1769708282411,7.5784,118.93,118.88,3.39902913]
[1769708282807,10.93494793,118.93,118.88,3.39902913]
[1769708283504,10.93564793,118.92,118.87,3.74879243]
[1769708286408,3.35654793,118.91,118.87,3.74879243]
[1769708286605,3.35654793,118.9,118.84,10.98292913]
[1769708287717,3.35654793,118.9,118.85,3.39902913]
[1769708287916,3.35654793,118.9,118.85,10.98252913]
[1769708288114,125.00110076,118.94,118.85,10.98252913]
[1769708288318,3.35654793,118.92,118.86,3.39902913]
[1769708289308,10.93554793,118.92,118.86,3.39902913]
[1769708290513,10.93554793,118.92,118.86,10.98182913]
[1769708290719,7.5784,118.93,118.86,3.39902913]
[1769708291510,193.5,118.97,118.86,3.39902913]
[1769708291511,3.35654793,118.97,118.88,3.39902913]
[1769708291716,3.35654793,118.97,118.91,6.39009112]
[1769708293116,10.93244793,118.97,118.91,6.39009112]
[1769708295115,3.35654793,118.97,118.92,6.39009112]
[1769708296414,3.35654793,118.96,118.91,2.99106199]
[1769708296814,3.35654793,118.96,118.91,6.39009112]
[1769708297514,3.35654793,118.98,118.89,3.39902913]
[1769708297819,3.35654793,118.97,118.91,6.39009112]
[1769708299323,10.93244793,118.97,118.91,6.39009112]
[1769708301520,10.93304793,118.96,118.89,10.97992913]
[1769708301712,10.93304793,118.96,118.9,6.38975557]
[1769708302218,10.93304793,118.96,118.91,2.99072644]
[1769708302423,10.93304793,118.96,118.91,6.38975557]
[1769708303125,3.35654793,118.96,118.92,2.99072644]
[1769708303423,10.93214793,118.98,118.93,2.99072644]
[1769708304219,10.93214793,118.98,118.92,2.99072644]
[1769708310330,10.93214793,118.98,118.92,6.56163843]
[1769708311232,7.576,118.97,118.92,6.56163843]
[1769708312529,3.35654793,118.98,118.93,3.57091199]
[1769708312736,3.3064728,119.0,118.95,2.99072644]
[1769708313232,3.3064728,119.0,118.96,2.99072644]
[1769708313427,10.8797728,119.02,118.96,2.99072644]
[1769708313828,10.8797728,119.02,118.96,6.35344077]
[1769708314026,10.8797728,119.02,118.97,2.99072644]
[1769708314227,3.3064728,119.0,118.95,2.99072644]
[1769708314433,3.3064728,118.99,118.94,3.36271433]
[1769708314625,3.3064728,118.99,118.93,10.56912644]
[1769708314830,13.87189924,118.99,118.93,10.94111433]
[1769708315031,10.8811728,118.99,118.93,13.93184077]
[1769708316330,10.8817728,118.98,118.93,3.36271433]
[1769708316726,10.8817728,118.98,118.92,6.35344077]
[1769708316926,117.8116,119.01,118.9,6.35344077]
[1769708316927,6.29719924,118.97,118.9,6.35344077]
[1769708317129,6.29719924,118.97,118.9,3.36271433]
[1769708317727,7.5765,118.96,118.91,3.36271433]
[1769708318834,6.29719924,118.97,118.91,10.94241433]
[1769708319234,7.5758,118.98,118.89,3.36271433]
[1769708319235,2.99072644,118.94,118.89,3.36271433]
[1769708319436,2.99072644,118.93,118.89,3.36271433]
[1769708319636,6.29719924,118.9,118.84,3.36271433]
[1769708319934,2.99072644,118.89,118.84,3.36271433]
[1769708320135,3.3064728,118.9,118.84,3.36271433]
[1769708320330,2.99072644,118.89,118.84,3.36271433]
[1769708321848,2.99072644,118.88,118.84,3.36271433]
[1769708322448,2.99072644,118.88,118.84,10.94671433]
[1769708323146,2.99072644,118.88,118.81,120.99582644]
[1769708323147,2.99072644,118.85,118.81,3.36271433]
[1769708323548,10.43995436,118.88,118.81,3.36271433]
[1769708323746,10.43995436,118.88,118.81,10.94851433]
[1769708323943,3.3064728,118.87,118.81,10.94851433]
[1769708326142,10.43995436,118.86,118.79,7.5869]
[1769708326943,3.3064728,118.85,118.78,3.36271433]
[1769708327148,117.9391,118.88,118.77,7.5881]
[1769708327149,3.3064728,118.83,118.77,7.5881]
[1769708327543,3.3064728,118.83,118.76,3.36271433]
[1769708327742,7.13348156,118.82,118.76,3.36271433]
[1769708328441,3.3064728,118.81,118.73,3.36271433]
[1769708328745,117.9687,118.85,118.71,3.36271433]
[1769708328746,3.3064728,118.79,118.71,3.36271433]
[1769708330449,3.3064728,118.79,118.72,10.95421433]
[1769708331747,10.43995436,118.78,118.72,3.36271433]
[1769708332050,10.43995436,118.78,118.69,235.80271433]
[1769708332051,3.3064728,118.77,118.69,235.80271433]
[1769708332249,3.3064728,118.77,118.69,3.36271433]
[1769708332551,3.3064728,118.75,118.69,3.36271433]
[1769708333250,3.3064728,118.73,118.65,3.36271433]
[1769708333445,3.3064728,118.71,118.65,3.36271433]
[1769708333647,3.3064728,118.73,118.65,3.36271433]
[1769708333841,10.8977728,118.73,118.65,10.95881433]
[1769708334846,3.3064728,118.73,118.65,10.95881433]
[1769708335552,3.3064728,118.73,118.65,3.36271433]
[1769708336249,10.66088851,118.72,118.65,3.36271433]
[1769708336449,18.25288851,118.72,118.65,3.36271433]
[1769708336848,11.11940695,118.72,118.65,3.36271433]
[1769708337045,3.52740695,118.72,118.65,3.36271433]
[1769708337752,3.52740695,118.72,118.65,10.95891433]
[1769708338150,3.52740695,118.72,118.65,3.36271433]
[1769708338647,3.52740695,118.71,118.65,3.36271433]
[1769708339248,3.52740695,118.71,118.64,7.5968]
[1769708339443,3.52740695,118.74,118.66,3.27376192]
[1769708339957,3.52740695,118.77,118.7,3.27376192]
[1769708340553,11.11610695,118.77,118.7,3.27376192]
[1769708342256,11.11610695,118.77,118.7,10.86676192]
[1769708342745,11.11610695,118.77,118.7,3.27376192]
[1769708344161,3.52740695,118.75,118.67,3.27376192]
[1769708344650,7.5906,118.74,118.67,3.27376192]
[1769708344856,3.52740695,118.75,118.67,3.27376192]
[1769708345456,7.5913,118.73,118.67,3.27376192]
[1769708345647,11.11870695,118.73,118.67,3.27376192]
[1769708346446,7.5931,118.7,118.63,10.87116192]
[1769708346644,11.12050695,118.7,118.63,10.87116192]
[1769708346850,11.12050695,118.7,118.63,3.27376192]
[1769708347746,7.5938,118.69,118.63,3.27376192]
[1769708348448,3.52740695,118.68,118.61,334.06678309]
[1769708348645,3.52740695,118.66,118.61,9.243e-05]
[1769708348849,10.66088851,118.66,118.61,9.243e-05]
[1769708349262,3.52740695,118.65,118.61,9.243e-05]
[1769708349957,7.5961,118.66,118.61,9.243e-05]
[1769708350449,7.5971,118.64,118.61,9.243e-05]
[1769708350856,3.52740695,118.65,118.61,9.243e-05]
[1769708351853,121.70740695,118.64,118.57,3.27376192]
[1769708352250,121.71320695,118.63,118.54,10.87666192]
[1769708352458,3.52740695,118.63,118.54,3.27376192]
[1769708353160,11.12640695,118.61,118.54,3.27376192]
[1769708354354,3.52740695,118.63,118.55,3.27376192]
[1769708354662,3.52740695,118.57,118.49,3.27376192]
[1769708354858,11.12900695,118.57,118.49,3.27376192]
[1769708355055,3.52740695,118.57,118.49,3.27376192]
[1769708355357,3.52740695,118.56,118.49,3.27376192]
[1769708355565,3.52740695,118.55,118.46,3.27376192]
[1769708356652,3.52740695,118.55,118.47,3.27376192]
[1769708356852,175.6012,118.58,118.47,3.27376192]
[1769708356853,3.52740695,118.58,118.49,3.27376192]
[1769708357048,3.52740695,118.58,118.49,10.87996192]
[1769708357752,3.52740695,118.58,118.5,10.87946192]
[1769708357952,3.52740695,118.58,118.5,121.58526192]
[1769708358157,3.52740695,118.58,118.51,3.27376192]
[1769708358357,3.52740695,118.58,118.51,10.87876192]
[1769708359453,118.2095,118.61,118.52,3.27376192]
[1769708359454,3.52740695,118.61,118.52,3.27376192]
[1769708359653,3.52740695,118.6,118.52,3.27376192]
[1769708359848,3.52740695,118.6,118.52,10.87816192]
[1769708361564,7.13348156,118.62,118.54,3.27376192]
[1769708361565,3.52740695,118.62,118.54,3.27376192]
[1769708362363,3.52740695,118.61,118.54,3.27376192]
[1769708365668,7.5974,118.64,118.56,3.43114812]
[1769708367365,121.5391189,118.64,118.56,3.43114812]
[1769708368171,3.3571189,118.61,118.53,3.43114812]
[1769708368877,128.70314287,118.64,118.55,3.43114812]
[1769708369071,3.3571189,118.64,118.55,3.43114812]
[1769708369268,3.3571189,118.64,118.57,3.43114812]
[1769708369473,7.5976,118.63,118.57,3.43114812]
[1769708370376,7.5968,118.65,118.58,3.43114812]
[1769708370571,121.5180189,118.66,118.58,3.43114812]
[1769708370769,3.3571189,118.65,118.58,3.43114812]
[1769708371073,3.3571189,118.64,118.55,11.03334812]
[1769708371468,3.3571189,118.64,118.55,3.43114812]
[1769708371469,10.9553189,118.62,118.55,3.43114812]
[1769708371668,10.9553189,118.62,118.52,125.45382397]
[1769708371669,3.3571189,118.62,118.53,7.6034]
[1769708371870,7.16402397,118.61,118.53,11.03454812]
[1769708372578,10.9575189,118.59,118.52,3.43114812]
[1769708372776,3.3571189,118.59,118.52,3.43114812]
[1769708373278,3.3571189,118.59,118.52,11.03574812]
[1769708373478,3.3571189,118.59,118.52,3.43114812]
[1769708373679,3.53677055,118.58,118.49,3.46782079]
[1769708374369,11.13767055,118.58,118.49,11.07382079]
[1769708374568,10.70079452,118.57,118.5,3.46782079]
[1769708375478,7.6021,118.56,118.5,3.46782079]
[1769708375866,7.6021,118.56,118.46,118.3456]
[1769708375867,3.53677055,118.56,118.47,3.46782079]
[1769708376375,10.70079452,118.55,118.47,11.07532079]
[1769708377177,3.53677055,118.55,118.48,7.6071]
[1769708377977,11.13947055,118.55,118.48,7.6071]
[1769708378678,18.30349452,118.55,118.48,7.6071]
[1769708378973,18.30349452,118.55,118.46,7.608]
[1769708378974,3.53677055,118.54,118.46,7.608]
[1769708379380,7.6041,118.53,118.46,11.07582079]
[1769708379578,11.14087055,118.53,118.46,11.07582079]
[1769708380576,7.6047,118.52,118.46,3.46782079]
[1769708381178,11.14147055,118.52,118.45,7.6091]
[1769708382986,11.14147055,118.52,118.45,11.07692079]
[1769708383377,7.6039,118.54,118.46,3.46782079]
[1769708383576,10.70079452,118.55,118.47,3.46782079]
[1769708384184,18.30359452,118.55,118.48,7.607]
[1769708384778,286.017,118.58,118.47,3.46782079]
[1769708384779,7.16402397,118.53,118.47,3.46782079]
[1769708384980,7.16402397,118.51,118.45,3.46782079]
[1769708385175,10.70079452,118.53,118.46,3.46782079]
[1769708386284,10.70079452,118.53,118.47,7.6076]
[1769708387382,18.30489452,118.53,118.46,3.46782079]
[1769708387587,10.70079452,118.53,118.46,3.46782079]
[1769708387887,14.76932397,118.51,118.43,11.07762079]
[1769708388091,7.16402397,118.49,118.43,3.46782079]
[1769708388286,3.53677055,118.5,118.43,3.46782079]
[1769708388487,7.16402397,118.51,118.43,3.46782079]
[1769708388678,10.70079452,118.53,118.45,3.46782079]
[1769708388877,7.16402397,118.49,118.43,3.46782079]
[1769708389285,10.70079452,118.49,118.41,118.4025]
[1769708389481,10.70079452,118.49,118.41,3.46782079]
[1769708389482,7.16402397,118.47,118.41,3.46782079]
[1769708389988,10.70079452,118.49,118.43,7.6104]
[1769708390977,18.30739452,118.49,118.43,7.6104]
[1769708394591,18.30739452,118.49,118.42,7.611]
[1769708394789,18.30739452,118.49,118.41,3.46782079]
[1769708396092,7.6059,118.51,118.43,3.26158427]
[1769708396290,7.16402397,118.5,118.43,3.26158427]
[1769708396789,3.55187614,118.49,118.43,7.6101]
[1769708397394,11.15847614,118.49,118.43,7.6101]
[1769708399693,11.15847614,118.49,118.42,7.611]
[1769708399993,3.55187614,118.49,118.42,3.26158427]
[1769708401495,10.71590011,118.51,118.43,3.26158427]
[1769708401791,3.55187614,118.5,118.43,3.26158427]
[1769708402394,3.55187614,118.5,118.45,7.6089]
[1769708403191,10.71590011,118.49,118.4,118.4124]
[1769708403384,3.55187614,118.46,118.38,3.26158427]
[1769708403992,3.55187614,118.46,118.4,7.6123]
[1769708405098,11.16047614,118.46,118.38,3.26158427]
[1769708405497,7.6092,118.45,118.38,3.26158427]
[1769708405898,11.16107614,118.45,118.38,3.26158427]
[1769708406202,11.16107614,118.45,118.36,118.4526]
[1769708406203,3.55187614,118.43,118.35,7.0103767]
[1769708406390,3.55187614,118.42,118.35,7.0103767]
[1769708407200,3.55187614,118.42,118.36,7.6143]
[1769708407500,3.55187614,118.42,118.36,10.87588427]
[1769708408386,3.55187614,118.42,118.35,3.74879243]
[1769708409193,3.55187614,118.42,118.35,11.36429243]
[1769708409400,3.55187614,118.42,118.35,7.0103767]
[1769708410402,3.55187614,118.42,118.36,7.6147]
[1769708410597,10.71590011,118.45,118.36,3.26158427]
[1769708410793,3.55187614,118.44,118.37,121.70418427]
[1769708411102,3.55187614,118.46,118.38,3.26158427]
[1769708411403,11.16087614,118.46,118.38,3.26158427]
[1769708412305,3.55187614,118.45,118.38,3.26158427]
[1769708412606,3.55187614,118.45,118.39,7.6129]
[1769708412909,3.55187614,118.48,118.4,3.26158427]
[1769708413202,7.16402397,118.44,118.33,179.85003888]
[1769708413506,7.6106,118.43,118.35,39.75003131]
[1769708413804,7.16402397,118.45,118.35,47.36533131]
[1769708414199,7.6102,118.44,118.35,47.36533131]
[1769708414703,7.6107,118.43,118.35,47.36533131]
[1769708415204,7.6107,118.43,118.35,39.75003131]
[1769708415507,7.6113,118.42,118.35,39.75003131]
[1769708417801,7.6147,118.37,118.29,36.00123888]
[1769708418301,7.6151,118.36,118.29,36.00123888]
[1769708418693,285.2742,118.39,118.29,43.16526285]
[1769708418903,118.4061,118.41,118.3,36.00128509]
[1769708419098,118.4061,118.41,118.31,43.16530906]
[1769708419403,118.4155,118.4,118.31,43.16530906]
[1769708419604,7.6134,118.39,118.31,43.16530906]
[1769708420401,7.6134,118.39,118.31,50.78330906]
[1769708420592,7.6134,118.39,118.32,36.00128509]
[1769708421098,7.612,118.41,118.32,36.00128509]
[1769708421301,118.3757,118.44,118.34,36.00128509]
[1769708421501,118.3857,118.43,118.34,36.00128509]
[1769708422202,118.3757,118.44,118.34,36.00128509]
[1769708422203,118.3757,118.44,118.34,43.61738509]
[1769708422712,285.3273,118.45,118.35,43.18755263]
[1769708423306,118.3559,118.46,118.37,43.18755263]
[1769708423899,7.609,118.46,118.38,36.00128509]
[1769708424112,126.14538126,118.5,118.4,36.00128509]
[1769708424295,118.3216,118.5,118.4,36.00128509]
[1769708424501,7.6081,118.47,118.4,36.00128509]
[1769708428006,7.6087,118.46,118.4,36.00128509]
[1769708428407,118.3407,118.48,118.4,36.00128509]
[1769708428610,7.6092,118.45,118.37,43.18755263]
[1769708429917,118.3455,118.47,118.37,43.18755263]
[1769708430917,118.3577,118.46,118.37,43.18755263]
[1769708431219,118.3679,118.45,118.37,43.18755263]
[1769708431419,285.4977,118.46,118.37,43.18755263]
[1769708432411,7.6099,118.44,118.37,50.80175263]
[1769708433018,7.6099,118.44,118.38,36.00128509]
[1769708434316,7.6108,118.43,118.38,36.00128509]
[1769708435527,118.3455,118.47,118.38,36.00128509]
[1769708436921,7.82378126,118.49,118.4,36.00128509]
[1769708437127,286.696,118.5,118.41,43.18755263]
[1769708438028,286.696,118.5,118.42,36.00128509]
[1769708438227,118.316,118.5,118.42,36.00128509]
[1769708438532,7.6066,118.49,118.42,43.61228509]
[1769708439124,7.6059,118.5,118.44,36.00128509]
[1769708439327,287.3171,118.52,118.44,36.00128509]
[1769708439825,7.6059,118.5,118.44,36.00128509]
[1769708440326,169.38,118.53,118.44,36.00128509]
[1769708440524,244.33338126,118.57,118.48,36.00128509]
[1769708440724,236.5096,118.57,118.48,36.00128509]
[1769708440928,406.0496,118.57,118.48,36.00128509]
[1769708441523,236.5096,118.57,118.48,43.60838509]
[1769708441730,406.4696,118.57,118.48,43.60838509]
[1769708442325,7.6028,118.55,118.48,43.60838509]
[1769708442924,118.2674,118.55,118.45,36.00128509]
[1769708443432,118.2851,118.53,118.45,36.00128509]
[1769708443624,118.2851,118.53,118.43,36.00128509]
[1769708443625,288.9354,118.52,118.43,36.00128509]
[1769708443825,178.2451,118.52,118.44,7.6093]
[1769708444027,178.2451,118.52,118.45,36.00128509]
[1769708444525,170.64,118.52,118.45,36.00128509]
[1769708444923,118.2674,118.55,118.45,36.00128509]
[1769708445130,289.3874,118.55,118.45,36.00128509]
[1769708445329,7.604,118.53,118.46,43.60968509]
[1769708445833,7.6047,118.52,118.46,36.00128509]
[1769708446036,118.2855,118.53,118.43,36.00128509]
[1769708446727,7.6052,118.52,118.43,43.61158509]
[1769708446929,118.2855,118.53,118.43,43.61158509]
[1769708448333,7.6053,118.51,118.45,36.00128509]
[1769708449329,7.6045,118.53,118.45,36.00128509]
[1769708449534,7.6045,118.53,118.47,36.00128509]
[1769708450437,7.6033,118.55,118.47,36.00128509]
[1769708451330,7.6033,118.55,118.49,36.00128509]
[1769708453038,118.2562,118.56,118.47,36.00128509]
[1769708453545,7.6041,118.53,118.47,36.00128509]
[1769708453837,118.2761,118.54,118.45,36.00128509]
[1769708455329,7.6053,118.51,118.45,36.00128509]
[1769708455629,118.2655,118.55,118.45,36.00128509]
[1769708456736,118.2562,118.56,118.47,36.00128509]
[1769708457241,7.6033,118.55,118.48,43.60838509]
[1769708457846,7.6034,118.54,118.48,36.00128509]
[1769708458335,118.2574,118.56,118.48,36.00128509]
[1769708459342,7.604,118.53,118.48,36.00128509]
[1769708459931,7.6032,118.55,118.48,43.60838509]
[1769708462541,7.6021,118.56,118.49,43.60778509]
[1769708463038,7.6021,118.56,118.5,43.60718509]
[1769708464037,118.2054,118.61,118.52,43.60588509]
[1769708464234,118.2054,118.61,118.52,36.00128509]
[1769708464235,118.2159,118.6,118.52,36.00128509]
[1769708464442,7.18626754,118.59,118.52,36.00128509]
[1769708464747,118.2159,118.6,118.52,36.00128509]
[1769708464942,180.10626754,118.62,118.52,36.00128509]
[1769708465138,7.18626754,118.6,118.52,36.00128509]
[1769708465447,7.6008,118.58,118.52,36.00128509]
[1769708466137,7.18626754,118.61,118.52,43.60558509]
[1769708467342,7.18626754,118.61,118.53,43.60518509]
[1769708467541,172.92,118.62,118.53,43.60518509]
[1769708467848,7.5995,118.6,118.53,43.60518509]
[1769708471940,172.92,118.62,118.54,7.6033]
[1769708472141,172.92,118.62,118.54,43.60458509]
[1769708472649,7.5983,118.62,118.56,36.00128509]
[1769708473547,7.5989,118.61,118.56,36.00128509]
[1769708474248,118.177,118.64,118.56,36.00128509]
[1769708474448,180.76626754,118.65,118.56,36.00128509]
[1769708474845,7.5976,118.63,118.56,36.00128509]
[1769708477251,7.5983,118.62,118.56,36.00128509]
[1769708477853,7.5989,118.61,118.56,36.00128509]
[1769708478053,118.1958,118.62,118.53,36.00128509]
[1769708479041,7.5995,118.6,118.53,36.00128509]
[1769708479647,7.5995,118.6,118.53,43.60528509]
[1769708481050,118.2065,118.61,118.53,36.00128509]
[1769708481451,118.2184,118.6,118.53,36.00128509]
[1769708481748,125.38656692,118.6,118.53,36.00128509]
[1769708481951,125.38656692,118.6,118.51,43.60598509]
[1769708482141,7.6008,118.58,118.51,43.60598509]
[1769708482748,7.6014,118.57,118.51,43.60598509]
[1769708483962,118.2352,118.58,118.51,36.00128509]
[1769708484154,125.40336692,118.58,118.51,36.00128509]
[1769708485356,118.2352,118.58,118.51,36.00128509]
[1769708486048,125.40336692,118.58,118.51,36.00128509]
[1769708486246,7.6021,118.56,118.51,36.00128509]
[1769708488359,7.6028,118.55,118.51,36.00128509]
[1769708488559,125.42516692,118.56,118.49,36.00128509]
[1769708489063,7.6034,118.54,118.49,36.00128509]
[1769708489858,7.6027,118.55,118.49,36.00128509]
[1769708490565,7.6034,118.54,118.49,36.00128509]
[1769708494869,7.604,118.53,118.49,36.00128509]
[1769708496363,7.6047,118.52,118.49,36.00128509]
[1769708496663,7.6047,118.52,118.47,36.00128509]
[1769708497467,118.3059,118.51,118.41,7.80363957]
[1769708497670,118.3059,118.51,118.4,128.81678555]
[1769708497671,118.3059,118.51,118.4,346.0726]
[1769708497862,7.6066,118.49,118.43,7.6103]
[1769708498868,7.6072,118.48,118.42,7.611]
[1769708499371,125.47546692,118.51,118.42,7.611]
[1769708499565,125.47546692,118.51,118.43,28.09698509]
[1769708499870,7.6066,118.49,118.44,28.09698509]
[1769708500973,125.47546692,118.51,118.44,28.09698509]
[1769708502275,125.49586692,118.49,118.37,331.68549807]
[1769708502475,125.49586692,118.49,118.37,559.30549807]
[1769708502675,7.16816692,118.49,118.38,118.4318]
[1769708503070,7.16816692,118.45,118.37,552.13733115]
[1769708504378,7.6098,118.44,118.38,21.31063509]
[1769708504971,7.6091,118.46,118.39,21.31063509]
[1769708505175,125.49546692,118.49,118.39,21.31063509]
[1769708505568,118.3073,118.51,118.41,21.31063509]
[1769708505772,125.47546692,118.51,118.41,21.31063509]
[1769708506380,7.6066,118.49,118.43,21.31063509]
[1769708506988,177.68,118.52,118.44,21.31063509]
[1769708506989,295.9776,118.52,118.44,21.31063509]
[1769708508280,7.6059,118.5,118.44,21.31063509]
[1769708510880,7.6066,118.49,118.44,21.31063509]